Cogmind - Beta 13 @@@ ROGUE MODE // 2024.08.05 @ 13:09:47 // Winter2019/RPGLIKE Player: badjay Result: Destroyed by G-34 Mercenary with Small Laser Performance ------------- Evolutions (1) 500 Regions Visited (3) 600 Robots Destroyed (27) 135 Value Destroyed (907) 907 Prototype IDs (9) 180 Alien Tech Used (0) 0 Bonus (11) 11 TOTAL SCORE: 2333 Bonus ------- High Alert Combat Kills 11 Cogmind --------- Core Integrity 0/600 Matter 300/300 Energy 250/250 System Corruption 0% Temperature Cool (7) Movement Flying (40) Location -9/Materials Parts ------- > --- POWER (1) -------- Ion Engine > --- PROPULSION (2) --- Improved Flight Unit > --- UTILITY (2) ------ Experimental Sensor Array > --- WEAPON (2) ------- Hammer Makeshift Spear > --- INVENTORY (0) ---- (None) Peak State ------------ > --- POWER ------------ Ion Engine > --- PROPULSION ------- VTOL Module Improved Flight Unit > --- UTILITY ---------- Experimental Sensor Array Terrain Scanner > --- WEAPON ----------- Rocket Launcher Makeshift Spear > --- INVENTORY -------- (None) [Rating: 22] Favorites ----------- Power Ion Engine Engine Ion Engine Propulsion VTOL Module Flight Unit VTOL Module Utility Terrain Scanner Device Terrain Scanner Weapon Rocket Launcher Launcher Rocket Launcher Impact Weapon Hammer Piercing Weapon Makeshift Spear Build | -11 -10 -10 -9 ------- Run | Yrd Mat Min Mat Slots Evolved 3 | . 3 . . Power . | . . . . Propulsion 1 | . 1 . . Utility 1 | . 1 . . Weapon 1 | . 1 . . Parts Attached 12 | . 4 3 5 Power 1 | . . . 1 Engine 1 | . . . 1 Core . | . . . . Reactor . | . . . . Propulsion 2 | . 1 . 1 Treads . | . . . . Leg . | . . . . Wheel . | . . . . Hover . | . . . . Flight 2 | . 1 . 1 Utility 3 | . 1 1 1 Device 3 | . 1 1 1 Storage . | . . . . Processor . | . . . . Hackware . | . . . . Protection . | . . . . Artifact . | . . . . Weapon 6 | . 2 2 2 Energy Gun . | . . . . Energy Cannon . | . . . . Ballistic Gun . | . . . . Ballistic Cannon . | . . . . Launcher 3 | . 2 1 . Special Weapon . | . . . . Impact Weapon 1 | . . . 1 Slashing Weapon . | . . . . Piercing Weapon 2 | . . 1 1 Special Melee Weapon . | . . . . Unidentified Prototypes 1 | . . 1 . Parts Lost 1 | . . . 1 Power . | . . . . Propulsion 1 | . . . 1 Utility . | . . . . Weapon . | . . . . Highest Loss Streak 1 | . . . 1 To Critical Strikes . | . . . . Average Slot Usage (%) 76 | . 59 61 96 Engine 5 | . . . 11 Flight 21 | . 19 14 27 Device 23 | . 14 26 27 Launcher 13 | . 24 14 5 Impact Weapon 3 | . . . 8 Piercing Weapon 8 | . . 7 14 Naked Turns 5 | . 5 . . Heaviest Build 13 | . 5 8 13 Greatest Support 14 | 3 9 9 14 Greatest Overweight (x) . | . . . . Average Overweight (x) . | . . . . Largest Inventory Capacity . | . . . . Average Capacity . | . . . . Most Carried . | . . . . Average Carried . | . . . . Final Capacity . | . . . . Final Carried . | . . . . Class Distribution -------------------- 55% | Hacker-Mutant 44% | Hacker-Scout Dominant Class ---------------- Hacker-Mutant | -10/Materials Hacker-Mutant | -10/Mines Hacker-Scout | -9/Materials Resources | -11 -10 -10 -9 ----------- Run | Yrd Mat Min Mat Matter Collected 672 | 191 69 351 61 Remotely . | . . . . Salvage Created 528 | . 144 84 300 Parts 50 | . 18 7 25 Haulers Intercepted . | . . . . Recyclers Shooed . | . . . . Parts Field Recycled . | . . . . Retrieved Matter . | . . . . Parts Self-Destructed . | . . . . Prevented . | . . . . Kills | -11 -10 -10 -9 ------- Run | Yrd Mat Min Mat Combat Hostiles Destroyed 22 | . 9 6 7 Melee 6 | . . . 6 AOE 16 | . 9 6 1 Classes Destroyed 5 | . 4 . 1 Recycler 1 | . 1 . . Watcher 4 | . 1 . 3 Swarmer 3 | . 3 . . Grunt 16 | . 6 6 4 Sentry 3 | . . . 3 Best Kill Streak 5 | . 5 4 4 Combat Bots Only 5 | . 5 4 2 Max Kills in Single Turn 2 | . 2 2 1 Gunslinging . | . . . . Exploded 2 | . 2 2 1 Melee 1 | . . . 1 Uniques/NPCs Destroyed . | . . . . Combat | -11 -10 -10 -9 -------- Run | Yrd Mat Min Mat Hostile Shots Fired 89 | . 12 24 53 Missed 41 | . 9 8 24 Damage Taken 995 | . 261 199 535 Core 871 | . 234 162 475 Absorbed by Shields . | . . . . Redirected to Core 423 | . 101 117 205 Core Remaining (%) 76 | 100 . 53 . Volleys Fired 32 | . 20 11 1 Largest 1 | . 1 1 1 Hottest 33 | . 33 33 33 Shots Fired 32 | . 20 11 1 Gun . | . . . . Cannon . | . . . . Launcher 32 | . 20 11 1 Special . | . . . . Kinetic . | . . . . Thermal . | . . . . Explosive 32 | . 20 11 1 Electromagnetic . | . . . . Robot Hit Streak 3 | . 3 2 3 Robot Miss Streak 11 | . 6 11 . Penetration Max . | . . . . Secondary Targets . | . . . . Shots Hit Robots 46 | . 9 4 33 Core Hits 35 | . 13 13 9 Critical Kills . | . . . . Critical Parts Destroyed 3 | . . . 3 Critical Strikes 6 | . . . 6 Smash 3 | . . . 3 Impale 3 | . . . 3 Melee Attacks 44 | . . . 44 Impact 16 | . . . 16 Slashing . | . . . . Piercing 28 | . . . 28 Sneak Attacks . | . . . . Combat Hostiles . | . . . . Follow-up Attacks 3 | . . . 3 Damage Inflicted 2692 | . 933 643 1116 Guns . | . . . . Cannons . | . . . . Explosions 1664 | . 933 643 88 Melee 1028 | . . . 1028 Ramming . | . . . . Kinetic . | . . . . Thermal . | . . . . Explosive 1664 | . 933 643 88 Electromagnetic . | . . . . Impact 298 | . . . 298 Slashing . | . . . . Piercing 730 | . . . 730 Highest Corruption . | . . . . Average Corruption . | . . . . Corruption Purged . | . . . . Corruption Blocked . | . . . . Overload Shots . | . . . . Overflow Damage 140 | . . 11 129 Projectiles . | . . . . Explosions 11 | . . 11 . Melee 129 | . . . 129 Knockbacks 1 | . . . 1 Impact 1 | . . . 1 Kinetic . | . . . . Secondary . | . . . . Self-Inflicted Damage 226 | . 177 . 49 Shots 6 | . 5 . 1 Rammed . | . . . . Targets Rammed . | . . . . Kicked . | . . . . Crushed . | . . . . Highest Temperature 40 | . 1 40 2 Average Temperature 21 | . 1 32 2 Received Heat Transfer 339 | . 24 126 189 Siege Activations . | . . . . Robots Corrupted . | . . . . Combat Hostiles . | . . . . Parts Fried 3 | . . . 3 Impact Corruptions 5 | . . . 5 Robots Melted . | . . . . Combat Hostiles . | . . . . Parts Melted . | . . . . Heat Transferred . | . . . . Parts Sabotaged . | . . . . Parts Stolen . | . . . . Parts Stripped . | . . . . Power Chain Reactions . | . . . . Alert | -11 -10 -10 -9 ------- Run | Yrd Mat Min Mat Peak Influence 459 | . 294 259 459 Initial 100 | . . 72 100 Average 213 | . 136 218 265 Maximum Alert Level 2 | . 1 1 2 Low Security (%) 44 | 100 73 31 31 Level 1 45 | . 26 68 46 Level 2 9 | . . . 21 Level 3 . | . . . . Level 4 . | . . . . Level 5 . | . . . . High Security . | . . . . Max Security . | . . . . Squads Dispatched 1 | . 1 . . Investigation 1 | . 1 . . Extermination . | . . . . Reinforcement . | . . . . Assault . | . . . . Garrison . | . . . . Intercept . | . . . . Searches Triggered . | . . . . Construction Impeded . | . . . . Haulers Reinforced . | . . . . Active Scanning Responses . | . . . . Cargo Convoy Interrupts . | . . . . Stealth | -11 -10 -10 -9 --------- Run | Yrd Mat Min Mat Distress Signals . | . . . . Communications Jammed . | . . . . Distress Signals . | . . . . Times Spotted 34 | . 10 6 18 Peak Tracking Total 5 | . 2 4 5 Tactical Retreats 2 | . . . 2 Traps | -11 -10 -10 -9 ------- Run | Yrd Mat Min Mat Traps Triggered 3 | . 3 . . Indirectly . | . . . . Trap Hack Attempts . | . . . . Triggered . | . . . . Disarmed . | . . . . Reprogrammed . | . . . . Reused . | . . . . Traps Extracted . | . . . . Installed . | . . . . Triggered . | . . . . Machines | -11 -10 -10 -9 ---------- Run | Yrd Mat Min Mat Machines Disabled 5 | . 5 . . Max in Single Turn 2 | . 2 . . Machines Repaired . | . . . . Machines Dismantled . | . . . . Machines Sabotaged . | . . . . Overloaded Fab Kills . | . . . . Hacking | -11 -10 -10 -9 --------- Run | Yrd Mat Min Mat Machines Accessed 11 | . 6 . 5 Terminals 11 | . 6 . 5 Fabricators . | . . . . Repair Stations . | . . . . Recycling Units . | . . . . Scanalyzers . | . . . . Garrison Access . | . . . . Total Hacks 87 | . 45 . 42 Successful 46 | . 23 . 23 Failed 41 | . 22 . 19 Catastrophic 3 | . 1 . 2 Database Lockouts . | . . . . Manual 64 | . 27 . 37 Terminals 87 | . 45 . 42 Fabricators . | . . . . Repair Stations . | . . . . Recycling Units . | . . . . Scanalyzers . | . . . . Garrison Access . | . . . . Terminal Hacks 33 | . 17 . 16 Prototype ID Bank 8 | . 4 . 4 Level Access Points 3 | . 1 . 2 Branch Access Points 3 | . 2 . 1 Terminal Index 2 | . 1 . 1 Alert Level 7 | . 4 . 3 Unreport Threat 4 | . 2 . 2 Hauler Manifests 2 | . 2 . . Registered Components 2 | . . . 2 Registered Prototypes 1 | . . . 1 Zone Layout 1 | . 1 . . Fabricator Hacks . | . . . . Repair Station Hacks . | . . . . Recycling Unit Hacks . | . . . . Scanalyzer . | . . . . Garrison Access Hacks . | . . . . Unauthorized Hacks 13 | . 6 . 7 Terminals 13 | . 6 . 7 Track 2 | . 2 . . Assimilate 2 | . . . 2 Botnet 6 | . 3 . 3 Disrupt 1 | . . . 1 Operators 2 | . 1 . 1 Fabricators . | . . . . Repair Stations . | . . . . Recycling Units . | . . . . Scanalyzers . | . . . . Garrison Access . | . . . . Data Cores Recovered . | . . . . Used . | . . . . Hacking Detections 10 | . 5 . 5 Full Trace Events . | . . . . Feedback Events . | . . . . Feedback Blocked . | . . . . Robot Schematics Acquired . | . . . . Robots Built . | . . . . Authchips . | . . . . Time . | . . . . Total Robot Build Rating . | . . . . Part Schematics Acquired . | . . . . Parts Built . | . . . . Authchips . | . . . . Time . | . . . . Total Part Build Rating . | . . . . Parts Repaired . | . . . . Time . | . . . . Parts Recycled . | . . . . Recycled Matter . | . . . . Retrieved Matter . | . . . . Retrieved Components . | . . . . Parts Scanalyzed . | . . . . Part Schematics Acquired . | . . . . Parts Damaged . | . . . . Bothacking | -11 -10 -10 -9 ------------ Run | Yrd Mat Min Mat Used RIF Installer . | . . . . Robots Hacked . | . . . . Non-combat . | . . . . Combat . | . . . . Robot Hacks Applied . | . . . . Relay Couplers Released . | . . . . Fabnet Peak Effective % . | . . . . Robots Rewired . | . . . . Allies Hacked . | . . . . Hacks Repelled . | . . . . Allies | -11 -10 -10 -9 -------- Run | Yrd Mat Min Mat Total Allies 2 | . . . 2 Largest Group 1 | . . . 1 Highest-Rated Group 10 | . . . 10 Highest-Rated Ally 10 | . . . 10 Total Orders . | . . . . Ally Attacks . | . . . . Total Damage . | . . . . Kills . | . . . . Allies Corrupted . | . . . . Allies Melted . | . . . . Intel | -11 -10 -10 -9 ------- Run | Yrd Mat Min Mat Robot Analysis Total . | . . . . Derelict Logs Recovered . | . . . . Drone Launches . | . . . . Drone Recoveries . | . . . . Exploration | -11 -10 -10 -9 ------------- Run | Yrd Mat Min Mat Turns Passed 900 | 10 261 224 405 Spaces Moved 1609 | 21 549 530 509 Core 114 | 21 93 . . Treads . | . . . . Legs . | . . . . Wheels . | . . . . Hover . | . . . . Flight 1495 | . 456 530 509 Fastest Speed 34 | 50 35 35 34 Average Speed 35 | 50 37 35 34 Slowest Speed 50 | 50 50 35 40 Overloaded Moves . | . . . . Propulsion Burnouts . | . . . . Robots Hopped 11 | . 2 5 4 Cave-ins Triggered 1 | . . . 1 Exploration Rate (%) 53 | 3 80 84 45 Regions Visited 3 Branch Regions 1 Pre-discovered Areas . | . . . . Known Exits Taken 2 | . 1 1 . Unknown Exits Taken 1 | 1 . . . Scrap Searched . | . . . . Spaces Dug 5 | . . . 5 Terrain Destroyed 204 | . 119 67 18 Melee 5 | . . . 5 Projectile . | . . . . AOE 199 | . 119 67 13 Terrain Rammed . | . . . . Walls Destroyed . | . . . . Machines Disabled . | . . . . Actions | -11 -10 -10 -9 --------- Run | Yrd Mat Min Mat Total 1832 | 20 580 551 681 Wait 135 | . 5 9 121 Move 1584 | 20 544 519 501 Hop 11 | . 2 5 4 Pick Up . | . . . . Fast Attach 9 | . 3 2 4 Attach . | . . . . Detach . | . . . . Swap 3 | . 1 1 1 Drop 5 | . 1 1 3 Fire 32 | . 20 11 1 Melee 39 | . . . 39 Ram . | . . . . Kick . | . . . . Crush . | . . . . Escape Stasis . | . . . . Rewire . | . . . . Trap . | . . . . Miscellaneous 14 | . 4 3 7 Route ------- -11/Scrapyard -10/Materials (discovered 5 exits: *Mat x3 / *Min x2) -10/Mines (discovered 2 exits: *Mat x2) -9/Materials (discovered 4 exits: Mat x3 / *Min) History --------- Turn | Location | Event 4 | -11/Scrapyard | Discovered new exit (range 16) 11 | -11/Scrapyard | Entered Materials 31 | -10/Materials | Identified exit to Mines 77 | -10/Materials | Discovered new exit (range 10) 121 | -10/Materials | Discovered new exit (range 8) 168 | -10/Materials | Identified exit to Materials 267 | -10/Materials | Reached level 2 269 | -10/Materials | Upgraded with Propulsion slot (x1) 269 | -10/Materials | Upgraded with Utility slot (x1) 269 | -10/Materials | Upgraded with Weapon slot (x1) 272 | -10/Materials | Entered Mines 295 | -10/Mines | Assembled infested the area 300 | -10/Mines | Assisted by a Guerilla fighting off Assembled 303 | -10/Mines | Build established: Hacker-Mutant 303 | -10/Mines | Found a damaged Exp. Sensor Array with a note attached 304 | -10/Mines | Found Prototype Device 304 | -10/Mines | Identified Exp. Sensor Array 387 | -10/Mines | A weapon hastily lodged in a ceiling crevice suddenly fell to the ground 399 | -10/Mines | Discovered exit to Materials (range 7) 404 | -10/Mines | Discovered exit to Materials (range 10) 427 | -10/Mines | Received a Rocket Launcher from a helpful Derelict 496 | -10/Mines | Entered Materials 498 | -9/Materials | Reached level 3 544 | -9/Materials | Core integrity fell below 50% 562 | -9/Materials | Reached level 4 646 | -9/Materials | Identified exit to Mines 646 | -9/Materials | Identified exit to Materials 789 | -9/Materials | Build established: Hacker-Scout 836 | -9/Materials | Crushed by falling debris 848 | -9/Materials | Core integrity fell below 20% 901 | -9/Materials | Destroyed by G-34 Mercenary with Small Laser Last Messages --------------- >>Prototypes Downloading prototype IDs... Hvy. Ion Engine Imp. EM Shotgun >>Prototypes Downloading prototype IDs... Prc. Beam Rifle Adv. Beam Rifle >>Prototypes Downloading prototype IDs... Imp. EM Shotgun Adv. Beam Cannon 00867_ Technician 2b reports 0b10 security level has lowered to 0. 00884_ Terrain Scanner severed. 00895_ R-06 Scavenger inserts Visual Processing Unit into recycling unit. 00896_ VTOL Module destroyed. 00898_ R-06 Scavenger inserts Heat Sink into recycling unit. Map ----- +----------------------------------------------------+ | ??#####?####?######### # ######? !???????? | | ??##?#######?######### ########?? ????????? | | ??######################## ##########?? ???????? | | #?####??########## [ # ########## ???????? | | ##?#??###?######## + #######?## ? ??????? | | #?#?#####?######## # ########?? ? ??????? | | ########################## ###########?????????? | | #################### # ######??????? | | """ ############ # % # """ ######??????? | | """ ##?## # + """ #####???????? | | """ #####"" #= # # [ """ #?###???????? | | #####"T ||[#%! # # #####???????? | | #####"" |[[%# # #############???????? | | #+#####?### |[[######### = #############???????? | | ####### !#########=% ####??????? | | ############/## ####? % #?#???????? | | T #### ###???????? | | ############### ##### ########## ##????????? | | ################ ###### ## ? # #?#???????? | | #+######## ## ####?# ##? + ??????????? | | ####""" ## ###### ##? ?? # #?????????? | | ####""" ## ###### ##########??????o????? | | ####""" ## ###### ########## #?????????? | | #### # l """ #?????????? | | " """ ####""" + o g "Y" #?????????? | | " """ ####""" # @g r #?????????? | | " """ ####""" [ ######## ! #?????????? | | #### !#?#???## ===#?????????? | | #####################?#??# ===#?????????? | | ########??##?#######?##??# ==[#?????????? | | ????### ?###########??#?#! #?????????? | | #??#### ? ?? ? ???????? | | ??#??#? ? ?? [[[